bitfinex/quotes_SOLUSD_20250818
["timestamp","ask_amount","ask_price","bid_price","bid_amount"]
[1755526877715,8.69715148,181.56,181.54,42.2]
[1755526878116,8.69715148,181.55,181.54,42.2]
[1755526878758,26.0,181.58,181.54,42.2]
[1755526878943,8.69715148,181.55,181.54,42.2]
[1755526880043,34.69715148,181.55,181.53,0.03]
[1755526880222,8.69715148,181.54,181.53,42.23]
[1755526881052,26.0,181.55,181.53,42.23]
[1755526881227,8.69715148,181.54,181.53,42.23]
[1755526881430,26.0,181.55,181.53,42.23]
[1755526881632,34.69715148,181.55,181.53,47.7386927]
[1755526881856,26.0,181.55,181.54,15.10621557]
[1755526882059,8.69715148,181.57,181.54,15.10621557]
[1755526882358,8.69715148,181.56,181.55,57.28621557]
[1755526882523,0.2,181.62,181.55,57.28621557]
[1755526883044,8.69715148,181.56,181.54,15.10621557]
[1755526883244,8.69715148,181.55,181.54,43.21463594]
[1755526883549,8.69715148,181.55,181.53,5.53867152]
[1755526883740,8.69715148,181.55,181.54,42.18]
[1755526884654,26.0,181.59,181.54,42.18]
[1755526884859,8.69715148,181.55,181.54,42.18]
[1755526885247,8.69715148,181.55,181.53,0.03]
[1755526885464,26.0,181.59,181.53,0.03]
[1755526885465,8.69715148,181.54,181.53,0.03]
[1755526886352,13.53924515,181.54,181.53,0.03]
[1755526887429,26.0,181.52,181.51,0.03]
[1755526887638,39.53924515,181.52,181.49,0.03]
[1755526887850,13.53924515,181.5,181.49,0.03]
[1755526888166,26.0,181.48,181.47,0.03]
[1755526888462,39.53924515,181.48,181.47,0.03]
[1755526891768,26.0,181.51,181.47,0.03]
[1755526891938,13.53924515,181.48,181.47,0.03]
[1755526894062,26.0,181.53,181.47,0.03]
[1755526894267,13.53924515,181.48,181.47,0.03]
[1755526895764,31.50880172,181.53,181.47,0.03]
[1755526895947,13.53924515,181.48,181.47,0.03]
[1755526896479,39.53924515,181.48,181.47,0.03]
[1755526900779,13.53924515,181.48,181.47,0.03]
[1755526901980,0.06,181.53,181.47,0.03]
[1755526902150,13.53924515,181.5,181.47,0.03]
[1755526902552,13.59924515,181.49,181.47,0.03]
[1755526902951,13.53924515,181.48,181.47,0.03]
[1755526904254,0.06,181.49,181.47,0.03]
[1755526904255,13.59924515,181.49,181.47,0.03]
[1755526904862,13.53924515,181.48,181.47,0.03]
[1755526908466,34.70947042,181.48,181.47,0.03]
[1755526908873,0.06,181.49,181.47,0.03]
[1755526909185,8.70947042,181.48,181.47,0.03]
[1755526909383,0.06,181.49,181.47,0.03]
[1755526909854,8.76947042,181.49,181.47,0.03]
[1755526910274,8.70947042,181.48,181.47,0.03]
[1755526911880,0.06,181.49,181.47,0.03]
[1755526912175,8.70947042,181.48,181.47,0.03]
[1755526913967,0.06,181.49,181.47,0.03]
[1755526914168,8.70947042,181.48,181.47,0.03]
[1755526914683,0.06,181.49,181.47,0.03]
[1755526914885,0.06,181.49,181.48,15.10621557]
[1755526915070,0.06,181.49,181.48,23.81568599]
[1755526916374,0.06,181.49,181.48,29.32593505]
[1755526918157,0.06,181.49,181.48,20.61646463]
[1755526919576,0.06,181.49,181.48,62.65646463]
[1755526919784,0.06,181.49,181.48,71.36593505]
[1755526920589,0.06,181.49,181.48,62.65646463]
[1755526920805,0.06,181.49,181.48,71.36593505]
[1755526921093,26.06,181.55,181.51,41.10621557]
[1755526921094,0.06,181.55,181.51,41.10621557]
[1755526921294,1e-08,181.55,181.54,23.81568599]
[1755526921868,1e-08,181.55,181.54,57.14621557]
[1755526922067,1e-08,181.55,181.54,65.85568599]
[1755526922719,1e-08,181.55,181.54,71.36411388]
[1755526923002,1e-08,181.55,181.54,81.91495666]
[1755526923998,0.06,181.6,181.58,41.10621557]
[1755526924196,0.06,181.6,181.59,65.83568599]
[1755526924882,0.06,181.6,181.59,71.34259716]
[1755526925682,0.06,181.6,181.59,31.52943316]
[1755526925903,0.06,181.6,181.59,62.63312674]
[1755526926671,0.06,181.6,181.59,71.34259716]
[1755526927984,0.06,181.6,181.59,93.94259716]
[1755526929473,0.06,181.61,181.6,23.81568599]
[1755526930096,0.06,181.61,181.6,65.79568599]
[1755526930801,0.2,181.62,181.6,23.81568599]
[1755526931010,0.2,181.62,181.61,65.79568599]
[1755526931380,0.2,181.62,181.61,20.61252028]
[1755526931572,0.2,181.62,181.61,62.57252028]
[1755526932386,0.2,181.62,181.61,71.2819907]
[1755526933777,0.2,181.62,181.61,73.4885827]
[1755526933977,0.2,181.62,181.61,64.77911228]
[1755526934308,0.2,181.62,181.61,73.4885827]
[1755526935281,0.06,181.64,181.61,73.4885827]
[1755526935620,0.06,181.64,181.63,23.81568599]
[1755526935785,0.06,181.65,181.64,23.81568599]
[1755526935987,0.06,181.66,181.64,23.81568599]
[1755526936182,0.2,181.68,181.66,15.10621557]
[1755526936480,0.2,181.73,181.68,15.10621557]
[1755526936684,0.2,181.73,181.69,71.25956622]
[1755526938212,0.2,181.73,181.69,62.5500958]
[1755526938411,0.2,181.73,181.69,71.25956622]
[1755526939522,1e-08,181.7,181.69,71.25956622]
[1755526939884,1e-08,181.7,181.69,73.46494122]
[1755526941886,1e-08,181.7,181.69,31.52494122]
[1755526942090,1e-08,181.7,181.69,73.42494122]
[1755526942806,1e-08,181.7,181.69,99.42494122]
[1755526943020,1e-08,181.7,181.69,90.6954708]
[1755526943220,1e-08,181.7,181.69,99.40494122]
[1755526944302,1e-08,181.73,181.72,15.10621557]
[1755526944594,1e-08,181.73,181.72,65.69568599]
[1755526945025,1e-08,181.75,181.74,41.10621557]
[1755526945216,1e-08,181.75,181.74,91.69568599]
[1755526945587,1e-08,181.75,181.74,97.198052]
[1755526947508,1e-08,181.75,181.74,99.40282]
[1755526948312,0.06,181.79,181.75,15.10621557]
[1755526948514,0.1,181.8,181.78,23.81568599]
[1755526948812,1e-08,181.8,181.79,65.65568599]
[1755526950202,1e-08,181.8,181.79,71.15653862]
[1755526951317,0.06,181.85,181.83,15.10621557]
[1755526951490,11.30960587,182.02,181.85,15.10621557]
[1755526951688,8.70947042,181.94,181.87,15.10621557]
[1755526951888,8.70947042,181.94,181.88,50.52947042]
[1755526952313,8.70947042,181.95,181.9,15.10621557]
[1755526952515,8.70947042,181.95,181.91,41.82]
[1755526953235,26.0,181.95,181.91,41.82]
[1755526953405,34.70947042,181.95,181.91,41.82]
[1755526954098,8.70947042,181.94,181.91,41.82]
[1755526954315,34.70947042,181.94,181.91,41.82]
[1755526955416,2.86741767,181.96,181.91,47.31721749]
[1755526955723,3.99788228,181.95,181.91,47.31721749]
[1755526956016,12.7073527,181.95,181.91,47.31721749]
[1755526956223,0.06,181.94,181.91,47.31721749]
[1755526956521,4.05789358,181.94,181.91,47.31721749]
[1755526957031,4.05789358,181.94,181.91,41.82]
[1755526957193,8.70947042,181.93,181.91,41.82]
[1755526958129,8.76947042,181.94,181.91,41.82]
[1755526958297,3.99761025,181.93,181.91,41.82]
[1755526958493,0.06,181.94,181.91,41.82]
[1755526958699,4.00061276,181.93,181.91,41.82]
[1755526958927,0.06,181.94,181.91,41.82]
[1755526959608,4.00201776,181.93,181.91,47.31720751]
[1755526959818,0.06,181.94,181.91,41.82]
[1755526960006,4.0020185,181.93,181.91,41.82]
[1755526960209,8.76947042,181.94,181.91,41.82]
[1755526960408,4.00097721,181.93,181.91,41.82]
[1755526960642,0.06,181.94,181.91,41.82]
[1755526960849,8.70947042,181.92,181.91,41.82]
[1755526961136,8.76947042,181.94,181.91,41.82]
[1755526961435,3.99963033,181.93,181.91,41.82]
[1755526961636,8.70947042,181.93,181.91,41.82]
[1755526962322,12.70977232,181.92,181.88,15.10621557]
[1755526962509,8.70947042,181.92,181.89,41.76]
[1755526963412,4.00104801,181.91,181.89,41.76]
[1755526963733,8.70947042,181.92,181.89,41.76]
[1755526963912,4.00303702,181.91,181.89,41.76]
[1755526964231,8.70947042,181.92,181.89,41.76]
[1755526964428,4.00356218,181.91,181.89,41.76]
[1755526964628,8.70947042,181.92,181.89,41.76]
[1755526964938,4.00544503,181.91,181.88,15.10621557]
[1755526965234,8.70947042,181.92,181.9,41.74]
[1755526965414,4.00450945,181.91,181.9,56.84621557]
[1755526966827,8.70947042,181.93,181.9,41.74]
[1755526967302,0.06,181.94,181.91,41.72]
[1755526968131,8.76947042,181.94,181.91,41.72]
[1755526968335,8.70947042,181.93,181.91,41.72]
[1755526970237,8.70947042,181.92,181.89,15.10621557]
[1755526970410,0.06,181.94,181.9,41.7]
[1755526970734,8.70947042,181.93,181.9,41.7]
[1755526970952,8.76947042,181.94,181.9,41.7]
[1755526971440,8.76947042,181.94,181.91,5.4972239]
[1755526971731,8.76947042,181.94,181.92,41.7]
[1755526972342,0.06,181.94,181.92,41.7]
[1755526972524,0.06,181.94,181.93,15.10621557]
[1755526975142,0.06,181.94,181.93,20.60283514]
[1755526975516,8.76947042,181.94,181.93,15.10621557]
[1755526975938,0.06,181.94,181.93,15.10621557]
[1755526976320,8.76947042,181.94,181.93,15.10621557]
[1755526976514,0.06,181.94,181.93,15.10621557]
[1755526977328,0.06,181.94,181.93,20.60283514]
[1755526977514,0.06,181.94,181.93,29.31230556]
[1755526977921,0.06,181.94,181.93,20.60283514]
[1755526978231,0.06,181.94,181.93,29.31230556]
[1755526979118,0.06,181.94,181.93,20.60283514]
[1755526979345,0.06,181.94,181.93,56.76621557]
[1755526980215,0.06,181.94,181.9,22.6]
[1755526980416,8.70947042,181.91,181.9,15.10621557]
[1755526980634,8.70947042,181.91,181.89,41.66]
[1755526980832,8.70947042,181.9,181.89,41.66]
[1755526981149,0.06,181.94,181.89,41.66]
[1755526981447,0.06,181.94,181.9,15.10621557]
[1755526981623,4.03840162,181.93,181.9,15.10621557]
[1755526981820,4.03833032,181.92,181.9,15.10621557]
[1755526982027,0.06,181.94,181.92,15.10621557]
[1755526982247,0.06,181.94,181.93,56.74621557]
[1755526983250,8.76947042,181.94,181.93,41.64]
[1755526983439,12.81235228,181.94,181.93,41.64]
[1755526983636,12.81267662,181.94,181.91,41.64]
[1755526983826,8.70947042,181.92,181.91,41.64]
[1755526984953,0.06,181.94,181.92,15.10621557]
[1755526986260,8.70947042,181.93,181.92,15.10621557]
[1755526986948,8.70947042,181.93,181.92,20.60313729]
[1755526987656,8.70947042,181.93,181.92,15.10621557]
[1755526987847,0.06,181.94,181.92,15.10621557]
[1755526988028,0.06,181.94,181.93,41.62]
[1755526988231,8.76947042,181.94,181.93,41.62]
[1755526989844,0.06,181.94,181.93,41.62]
[1755526990049,8.76947042,181.94,181.93,41.62]
[1755526990237,0.06,181.94,181.93,41.62]
[1755526990429,8.76947042,181.94,181.93,41.62]
[1755526990652,0.06,181.94,181.93,62.22283514]
[1755526995999,0.06,181.94,181.93,70.93230556]
[1755527001340,0.06,181.94,181.93,62.22283514]
[1755527001659,0.06,181.94,181.93,70.93230556]
[1755527003969,0.06,181.94,181.93,62.22283514]
[1755527005164,0.06,181.94,181.93,70.93230556]
[1755527006152,0.06,181.94,181.93,20.60283514]
[1755527006359,0.06,181.94,181.93,62.14283514]
[1755527006874,8.76947042,181.94,181.93,62.14283514]
[1755527007050,8.76947042,181.94,181.93,56.64621557]
[1755527007251,8.76947042,181.94,181.93,41.54]
[1755527008354,8.76947042,181.94,181.9,15.10621557]
[1755527008568,0.06,181.94,181.91,41.52]
[1755527009679,0.06,181.94,181.85,0.03]
[1755527009680,8.70947042,181.92,181.85,0.03]
[1755527009984,8.70947042,181.87,181.86,56.62621557]
[1755527010185,8.70947042,181.88,181.86,56.62621557]
[1755527010783,8.70947042,181.87,181.86,56.62621557]
[1755527010984,8.70947042,181.87,181.86,62.12495086]
[1755527011171,8.70947042,181.88,181.86,62.12495086]
[1755527011568,8.70947042,181.87,181.86,41.52]
[1755527011886,8.70947042,181.87,181.85,0.03]
[1755527012084,8.70947042,181.86,181.85,0.03]
[1755527013466,5.49729637,181.91,181.85,0.03]
[1755527013677,8.70947042,181.86,181.85,0.03]
[1755527014482,13.02444856,181.92,181.85,0.03]
[1755527014687,8.70947042,181.86,181.85,0.03]
[1755527015101,8.70947042,181.92,181.85,0.03]
[1755527015271,8.70947042,181.86,181.85,0.03]
[1755527016212,8.70947042,181.86,181.85,20.63525323]
[1755527017269,8.70947042,181.92,181.85,20.63525323]
[1755527017270,8.70947042,181.87,181.85,20.63525323]
[1755527017464,8.70947042,181.86,181.85,20.63525323]
[1755527017785,0.06,181.94,181.85,43.23525323]
[1755527018095,0.06,181.94,181.86,56.60621557]
[1755527018398,8.70947042,181.91,181.87,5.49843294]
[1755527018688,8.70947042,181.91,181.88,15.10621557]
[1755527019063,8.70947042,181.93,181.9,15.10621557]
[1755527019263,0.06,181.94,181.9,15.10621557]
[1755527019579,8.76947042,181.94,181.9,15.10621557]
[1755527020367,8.76947042,181.94,181.91,5.4972239]
[1755527020789,8.70947042,181.93,181.91,5.4972239]
[1755527021114,8.70947042,181.92,181.88,41.5]
[1755527021285,8.70947042,181.9,181.88,41.5]
[1755527021470,2.86799212,181.93,181.89,23.81568599]
[1755527022395,2.86799212,181.93,181.91,15.10621557]
[1755527022598,2.86799212,181.93,181.91,56.60621557]
[1755527022773,0.06,181.94,181.91,56.60621557]
[1755527024676,0.06,181.94,181.92,5.49692172]
[1755527025093,8.76947042,181.94,181.92,5.49692172]
[1755527025303,8.76947042,181.94,181.91,15.10621557]
[1755527025478,8.70947042,181.92,181.85,22.63]
[1755527025797,8.70947042,181.88,181.87,15.10621557]
[1755527026387,8.70947042,181.88,181.86,41.48]
[1755527026587,8.70947042,181.87,181.86,56.58621557]
[1755527027423,8.70947042,181.87,181.86,41.48]
[1755527027711,8.70947042,181.87,181.85,0.03]
[1755527027876,8.70947042,181.86,181.85,0.03]
[1755527028378,8.70947042,181.86,181.85,26.03]
[1755527028579,5.49669652,181.93,181.85,31.52903766]
[1755527028803,0.06,181.94,181.85,31.52903766]
[1755527028804,5.55631746,181.94,181.85,31.52903766]
[1755527029113,8.70947042,181.87,181.85,31.52903766]
[1755527029502,8.70947042,181.86,181.85,41.13621557]
[1755527029807,8.70947042,181.86,181.85,46.63525323]
[1755527030202,8.70947042,181.92,181.85,46.63525323]
[1755527030392,8.70947042,181.86,181.85,46.63525323]
[1755527030710,8.70947042,181.86,181.85,62.11525323]
[1755527031501,8.70947042,181.87,181.85,62.11525323]
[1755527032502,8.70947042,181.86,181.85,0.03]
[1755527032696,8.70947042,181.86,181.85,41.49]
[1755527032893,8.70947042,181.92,181.85,41.49]
[1755527033211,8.70947042,181.86,181.85,41.49]
[1755527033881,26.0,181.91,181.85,46.98895912]
[1755527034084,8.70947042,181.88,181.85,46.98895912]
[1755527035431,26.0,181.91,181.85,46.98895912]
[1755527035612,8.70947042,181.89,181.85,46.98895912]
[1755527036121,8.70947042,181.9,181.86,15.10621557]
[1755527036299,8.70947042,181.9,181.85,46.98895912]
[1755527036300,0.06,181.94,181.89,5.49782835]
[1755527036611,8.76947042,181.94,181.89,46.95782835]
[1755527036816,0.06,181.94,181.9,23.81568599]
[1755527037002,0.06,181.94,181.92,15.10621557]
[1755527037313,0.06,181.94,181.93,56.56621557]
[1755527038641,0.06,181.94,181.93,62.06283514]
[1755527039921,0.06,181.94,181.93,46.95661957]
[1755527040247,8.76947042,181.94,181.93,46.95661957]
[1755527040444,8.76947042,181.94,181.91,5.4972239]
[1755527040741,8.70947042,181.92,181.91,20.60343947]
[1755527040943,8.70947042,181.92,181.91,62.04343947]
[1755527041344,8.76947042,181.94,181.91,62.04343947]
[1755527041714,0.06,181.94,181.91,62.04343947]
[1755527041917,0.06,181.94,181.92,15.10621557]
[1755527042133,0.06,181.94,181.93,41.44]
[1755527042545,2.92718159,181.96,181.93,70.75230556]
[1755527042848,2.92718159,181.96,181.95,15.10621557]
[1755527043147,2.92718159,181.96,181.95,56.54621557]
[1755527043829,0.06,181.98,181.97,41.10621557]
[1755527044027,0.1,182.13,182.04,8.70947042]
[1755527044226,34.70947042,182.1,182.05,41.42]
[1755527044533,8.70947042,182.1,182.06,5.49269471]
[1755527045149,8.70947042,182.1,182.05,46.91298408]
[1755527045329,8.70947042,182.06,181.97,20.6016269]
[1755527045530,8.70947042,182.03,181.99,15.10621557]
[1755527045732,8.70947042,182.05,182.0,41.42]
[1755527045936,8.70947042,182.06,182.01,15.10621557]
[1755527046119,8.70947042,182.06,182.02,41.42]
[1755527046646,26.0,182.07,182.02,46.91378711]
[1755527046822,8.70947042,182.05,182.02,46.91378711]
[1755527047135,8.70947042,182.04,182.02,46.91378711]
[1755527047448,8.70947042,182.04,182.02,41.42]
[1755527048436,13.46161739,182.04,182.02,41.42]
[1755527049926,13.46161739,182.03,182.02,41.42]
[1755527051057,13.46161739,182.04,182.02,41.42]
[1755527051618,26.0,182.07,182.02,46.91387997]
[1755527051850,13.46161739,182.06,182.02,46.91387997]
[1755527052227,26.0,182.07,182.03,15.10621557]
[1755527052228,13.46161739,182.07,182.03,15.10621557]
[1755527052430,13.46161739,182.08,182.04,41.38]
[1755527052955,13.46161739,182.05,181.96,39.7392513]
[1755527053168,13.46161739,182.05,181.99,13.46161739]
[1755527053343,13.46161739,182.05,182.01,15.10621557]
[1755527053542,13.46161739,182.05,182.02,41.38]
[1755527054476,0.06,182.07,182.02,41.38]
[1755527054677,13.46161739,182.06,182.02,41.38]
[1755527054978,13.52161739,182.07,182.03,5.49359995]
[1755527055150,13.46161739,182.06,182.04,41.38]
[1755527055481,13.46161739,182.05,182.04,41.38]
[1755527056350,13.46161739,182.05,182.0,15.10621557]
[1755527056557,13.46161739,182.02,182.01,56.46621557]
[1755527056772,13.46161739,182.04,182.01,56.46621557]
[1755527056969,13.46161739,182.05,182.01,56.46621557]
[1755527057877,13.52161739,182.05,182.02,5.49390176]
[1755527058071,13.52161739,182.05,182.03,41.36]
[1755527058255,13.52161739,182.05,182.02,5.49390176]
[1755527058456,13.46161739,182.04,182.03,41.36]
[1755527060174,13.52161739,182.05,182.03,41.36]
[1755527061373,13.52161739,182.05,182.04,41.36]
[1755527062476,0.06,182.07,182.04,41.36]
[1755527062477,0.06,182.07,182.05,15.10621557]
[1755527062684,0.06,182.07,182.06,61.93891028]
[1755527064286,0.06,182.07,182.03,5.49359995]
[1755527064581,0.06,182.07,182.04,61.93933921]
[1755527064762,2.86527679,182.06,182.04,75.4009566]
[1755527064987,2.86527679,182.06,182.05,13.46161739]
[1755527065196,2.86527679,182.06,182.04,61.93933921]
[1755527065781,2.86527679,182.06,182.04,75.4009566]
[1755527066192,0.06,182.07,182.04,75.4009566]
[1755527066395,0.06,182.09,182.06,13.46161739]
[1755527066573,0.06,182.09,182.08,20.59830695]
[1755527067177,1e-08,182.09,182.08,34.05992434]
[1755527067635,1e-08,182.09,182.08,56.65992434]
[1755527068201,1e-08,182.09,182.08,34.05992434]
[1755527068508,1e-08,182.1,182.08,34.05992434]
[1755527068806,1e-08,182.1,182.09,75.37962273]
[1755527069806,0.1,182.13,182.12,15.10621557]
[1755527070110,0.1,182.13,182.12,69.88783296]
[1755527070295,1e-08,182.13,182.12,69.88783296]
[1755527070698,1e-08,182.13,182.12,75.37871809]
[1755527076021,1e-08,182.13,182.11,5.49112638]
[1755527076317,1e-08,182.13,182.05,36.161617]
[1755527076318,1e-08,182.13,182.12,41.28]
[1755527076621,1e-08,182.13,182.12,41.54]
[1755527076788,13.4616174,182.13,182.12,41.54]
[1755527078889,13.4616174,182.13,182.12,47.03088513]
[1755527079084,1e-08,182.13,182.12,62.1371007]
[1755527080791,1e-08,182.13,182.12,75.59871809]
[1755527080989,1e-08,182.13,182.12,101.59871809]
[1755527081224,1e-08,182.13,182.12,92.09991509]
[1755527081615,1e-08,182.13,182.12,78.6382977]
[1755527081793,1e-08,182.13,182.12,37.0982977]
[1755527081986,1e-08,182.13,182.12,118.11991509]
[1755527082211,1e-08,182.13,182.12,75.61871809]
[1755527082414,1e-08,182.13,182.12,89.08033609]
[1755527082717,2.8632066,182.2,182.12,89.08033609]
[1755527082718,2.8632066,182.2,182.15,26.0]
[1755527083014,2.8632066,182.2,182.19,28.56783296]
[1755527083216,2.8632066,182.2,182.19,56.66621557]
[1755527083658,2.8632066,182.2,182.19,70.12783296]
[1755527085100,2.8632066,182.2,182.19,75.61660841]
[1755527086925,13.46161739,182.28,182.23,15.10621557]
[1755527087137,2.86219753,182.26,182.19,5.48877545]
[1755527087442,4.03510445,182.25,182.2,41.94]
[1755527087643,4.03510445,182.24,182.2,41.94]
[1755527087814,13.46161739,182.22,182.2,41.94]
[1755527088130,2.86219753,182.26,182.13,17.49672139]
[1755527088131,13.46161739,182.21,182.13,17.49672139]
[1755527088330,13.46161739,182.19,182.15,15.10621557]
[1755527088519,13.46161739,182.19,182.17,15.10621557]
[1755527088718,13.46161739,182.19,182.18,41.92]
[1755527089732,5.48699453,182.25,182.18,41.92]
[1755527089929,13.46161739,182.22,182.19,15.10621557]
[1755527090238,13.46161739,182.22,182.2,41.86]
[1755527090642,13.46161739,182.21,182.2,41.86]
[1755527090816,2.86219753,182.26,182.2,41.86]
[1755527091017,13.46161739,182.22,182.2,41.86]
[1755527091228,13.46161739,182.21,182.2,41.86]
[1755527092316,2.86219753,182.26,182.2,47.34837194]
[1755527092626,2.86219753,182.26,182.22,13.46161739]
[1755527092627,4.03902288,182.25,182.22,13.46161739]
[1755527092836,2.86219753,182.26,182.23,57.12621557]
[1755527093432,0.06,182.25,182.23,57.12621557]
[1755527093653,0.06,182.25,182.23,70.58783296]
[1755527094131,0.06,182.25,182.23,76.07510299]
[1755527094912,13.46161739,182.24,182.16,13.72357637]
[1755527095129,0.06,182.25,182.18,15.10621557]
[1755527095332,4.09842126,182.25,182.18,15.10621557]
[1755527095546,4.09842126,182.25,182.19,42.3]
[1755527095744,4.03842126,182.24,182.2,42.3]
[1755527096553,13.46161739,182.21,182.13,15.13621557]
[1755527096746,13.46161739,182.17,182.14,42.3]
[1755527097644,0.06,182.25,182.16,13.46161739]
[1755527097827,13.46161739,182.24,182.17,68.28]
[1755527098139,13.46161739,182.2,182.18,42.26]
[1755527098552,13.46161739,182.19,182.18,42.26]
[1755527098842,13.46161739,182.19,182.16,15.10621557]
[1755527099062,26.0,182.23,182.16,15.10621557]
[1755527099226,13.46161739,182.19,182.16,15.10621557]
[1755527099416,13.46161739,182.2,182.16,15.10621557]
[1755527099820,13.46161739,182.19,182.16,15.10621557]
[1755527100043,26.0,182.23,182.16,15.10621557]
[1755527100249,5.48756998,182.24,182.2,15.10621557]
[1755527100250,26.0,182.24,182.2,15.10621557]
[1755527100551,13.46161739,182.21,182.18,42.22]
[1755527100845,13.46161739,182.19,182.18,42.22]
[1755527101025,13.46161739,182.2,182.18,42.22]
[1755527101215,13.46161739,182.2,182.17,42.22]
[1755527101619,31.5469747,182.25,182.17,42.22]
[1755527101848,13.46161739,182.22,182.2,15.10621557]
[1755527102343,13.46161739,182.21,182.2,57.30621557]
[1755527102858,13.46161739,182.21,182.18,42.2]
[1755527103024,13.46161739,182.19,182.18,57.30621557]
[1755527104538,26.06,182.25,182.18,62.7952923]
[1755527104539,31.54702302,182.25,182.18,62.7952923]
[1755527104747,13.46161739,182.21,182.18,62.7952923]
[1755527105052,13.46161739,182.19,182.18,57.30621557]
[1755527105751,31.54702302,182.25,182.18,57.30621557]
[1755527105930,13.46161739,182.2,182.18,62.79522886]
[1755527106668,0.06,182.25,182.19,15.10621557]
[1755527106845,0.06,182.25,182.2,42.56]
[1755527106846,4.11784732,182.25,182.2,42.56]
[1755527107027,13.46161739,182.23,182.2,42.56]
[1755527107230,13.46161739,182.22,182.2,42.56]
[1755527107540,16.32432603,182.22,182.2,42.56]
[1755527107949,2.86270864,182.22,182.2,42.56]
[1755527108251,2.86270864,182.22,182.2,48.04832011]
[1755527109337,13.46161739,182.21,182.2,48.04832011]
[1755527109534,13.46161739,182.21,182.2,42.56]
[1755527109726,2.86270864,182.22,182.19,57.66621557]
[1755527110141,16.32432603,182.22,182.19,57.66621557]
[1755527110345,2.86270864,182.22,182.19,63.15485738]
[1755527110660,16.32432603,182.22,182.19,63.15485738]
[1755527111030,13.46161739,182.21,182.19,63.15485738]
[1755527111359,13.46161739,182.21,182.19,57.66621557]
[1755527111965,13.46161739,182.21,182.19,63.15491666]
[1755527112164,2.92270864,182.22,182.19,63.15491666]
[1755527113180,2.92270864,182.22,182.21,54.56783296]
[1755527113360,9.11621031,182.35,182.21,54.56783296]
[1755527113361,4.54706516,182.34,182.28,26.0]
[1755527113709,13.46161739,182.41,182.34,15.10621557]
[1755527113967,2.8605763,182.37,182.35,42.46]
[1755527114265,13.46161739,182.38,182.35,42.46]
[1755527114563,2.86068972,182.37,182.35,42.46]
[1755527115037,2.86068972,182.37,182.35,47.94384898]
[1755527115237,2.86068972,182.37,182.36,15.10621557]
[1755527116038,0.06,182.44,182.36,28.56783296]
[1755527116238,0.06,182.44,182.38,15.10621557]
[1755527116239,13.52161739,182.44,182.38,15.10621557]
[1755527116458,2.85961374,182.42,182.4,5.48245614]
[1755527116659,2.85961374,182.42,182.41,57.54621557]
[1755527118487,2.85961374,182.42,182.41,63.02837115]
[1755527118889,16.32123113,182.42,182.39,16.479442]
[1755527119176,13.46161739,182.4,182.38,42.52]
[1755527119379,8.34149092,182.42,182.38,42.52]
[1755527119548,13.46161739,182.39,182.38,42.52]
[1755527122463,2.85961374,182.42,182.38,42.52]
[1755527122667,13.46161739,182.4,182.38,48.00293679]
[1755527123366,13.46161739,182.4,182.39,42.64]
[1755527124397,13.46161739,182.4,182.39,42.6]
[1755527124885,16.32123113,182.42,182.4,15.10621557]
[1755527125088,2.85961374,182.42,182.41,57.66621557]
[1755527126567,2.85961374,182.42,182.41,63.14837115]
[1755527126787,0.06,182.44,182.42,15.10621557]
[1755527127067,0.06,182.44,182.43,42.56]
[1755527127878,1e-08,182.44,182.43,71.12783296]
[1755527128264,1e-08,182.44,182.43,57.66621557]
[1755527128492,1e-08,182.44,182.43,71.12783296]
[1755527129286,1e-08,182.44,182.43,76.60938752]
[1755527129590,1e-08,182.44,182.43,82.08757252]
[1755527129887,1e-08,182.44,182.43,39.52757252]
[1755527130187,1e-08,182.44,182.43,26.06595513]
[1755527130385,1e-08,182.44,182.43,68.54595513]
[1755527130573,1e-08,182.44,182.43,68.56595513]
[1755527131364,1e-08,182.44,182.43,82.02757252]
[1755527131786,1e-08,182.44,182.43,68.56595513]
[1755527131993,1e-08,182.44,182.43,82.02757252]